fUST/lending_fUST_20260316
["ID","MTS","AMOUNT","RATE_DAILY","PERIOD"]
[408454259,1773663555524,151.0,0.0001,23]
[408454260,1773663586817,109.58953238,0.0001,23]
[408454261,1773663586846,41.41046762,0.0001,23]
[408454262,1773663622118,151.0,0.0001,22]
[408454263,1773663655406,151.0,0.0001,22]
[408454264,1773663685955,151.0,0.0001,22]
[408454265,1773663724195,151.0,0.0001,22]
[408454266,1773663766650,151.0,0.0001,22]
[408454267,1773663784061,2004.29,0.0001,120]
[408454268,1773663797145,151.0,0.0001,22]
[408454269,1773663842094,52.58953238,0.0001,22]
[408454270,1773663842128,98.41046762,0.0001,22]
[408454271,1773663876508,151.0,0.0001,21]
[408454272,1773663911981,151.0,0.0001,21]
[408454273,1773663941237,713.97900611,0.0001,20]
[408454274,1773663941459,300.0,7.712e-05,120]
[408454275,1773663943192,300.0,7.712e-05,120]
[408454276,1773663944925,300.0,7.712e-05,120]
[408454277,1773663945293,151.0,0.0001,21]
[408454278,1773663946765,300.0,7.712e-05,120]
[408454279,1773663948557,300.0,7.712e-05,120]
[408454280,1773663950783,300.0,7.712e-05,120]
[408454281,1773663952562,300.0,7.712e-05,120]
[408454282,1773663954316,300.0,7.712e-05,120]
[408454283,1773663956394,300.0,7.712e-05,120]
[408454287,1773663958121,155.91,7.712e-05,120]
[408454288,1773663984553,151.0,0.0001,21]
[408454289,1773664025507,151.0,0.0001,21]
[408454295,1773664057019,146.58953238,0.0001,21]
[408454296,1773664057047,4.41046762,0.0001,21]
[408454297,1773664092200,151.0,0.0001,20]
[408454298,1773664127275,130.61052627,0.0001,20]
[408454300,1773664161995,151.0,0.0001,120]
[408454301,1773664197260,151.0,0.0001,120]
[408454302,1773664202161,160.6,2e-05,2]
[408454303,1773664224295,-160.6,2.2e-05,2]
[408454315,1773664231677,-324.6699665,8.522e-05,2]
[408454317,1773664231687,-4990.21817047,9.066e-05,2]
[408454319,1773664231696,-501.524,9.138e-05,2]
[408454321,1773664231706,-501.01071191,9.298e-05,2]
[408454323,1773664231715,-500.0,9.298e-05,2]
[408454325,1773664231724,-500.0,9.298e-05,2]
[408454327,1773664231734,-500.0,9.298e-05,2]
[408454329,1773664231743,-500.0,9.298e-05,2]
[408454331,1773664231752,-500.0,9.298e-05,2]
[408454333,1773664231762,-500.0,9.298e-05,2]
[408454335,1773664231771,-500.0,9.298e-05,2]
[408454337,1773664231780,-500.0,9.298e-05,2]
[408454338,1773664231789,-500.0,9.298e-05,2]
[408454339,1773664231799,-500.0,9.298e-05,2]
[408454340,1773664231809,-500.0,9.298e-05,2]
[408454342,1773664231819,-500.0,9.298e-05,2]
[408454344,1773664231829,-500.0,9.298e-05,2]
[408454346,1773664231838,-500.0,9.298e-05,2]
[408454347,1773664231847,-500.0,9.298e-05,2]
[408454348,1773664231857,-500.0,9.298e-05,2]
[408454349,1773664231866,-500.0,9.298e-05,2]
[408454350,1773664231875,-500.0,9.298e-05,2]
[408454351,1773664231884,-500.0,9.298e-05,2]
[408454352,1773664231894,-500.0,9.298e-05,2]
[408454353,1773664231903,-430.10180967,9.298e-05,2]
[408454354,1773664231913,-500.0,9.298e-05,2]
[408454355,1773664231922,-500.0,9.298e-05,2]
[408454356,1773664231931,-500.0,9.298e-05,2]
[408454357,1773664231940,-500.0,9.298e-05,2]
[408454358,1773664231949,-500.0,9.298e-05,2]
[408454360,1773664231959,-500.0,9.298e-05,2]
[408454362,1773664231968,-500.0,9.298e-05,2]
[408454364,1773664231977,-500.0,9.298e-05,2]
[408454366,1773664231987,-500.0,9.298e-05,2]
[408454368,1773664231996,-500.0,9.298e-05,2]
[408454370,1773664232006,-500.0,9.298e-05,2]
[408454372,1773664232015,-500.0,9.298e-05,2]
[408454374,1773664232024,-500.0,9.298e-05,2]
[408454376,1773664232034,-500.0,9.298e-05,2]
[408454378,1773664232043,-296.88121983,9.298e-05,2]
[408454380,1773664232053,-500.0,9.298e-05,2]
[408454382,1773664232062,-500.0,9.298e-05,2]
[408454384,1773664232071,-500.0,9.298e-05,2]
[408454386,1773664232082,-500.0,9.298e-05,2]
[408454389,1773664232092,-500.0,9.298e-05,2]
[408454391,1773664232101,-500.0,9.298e-05,2]
[408454392,1773664232111,-500.0,9.298e-05,2]
[408454394,1773664232120,-500.0,9.298e-05,2]
[408454396,1773664232129,-500.0,9.298e-05,2]
[408454398,1773664232139,-500.0,9.298e-05,2]
[408454401,1773664232148,-300.0,9.298e-05,2]
[408454403,1773664232158,-1200.0,9.298e-05,2]
[408454405,1773664232168,-434.13870153,9.3e-05,2]
[408454407,1773664232177,-897.55686428,9.3e-05,2]
[408454408,1773664232187,-991.45922352,9.3e-05,2]
[408454410,1773664232196,-1008.26840993,9.3e-05,2]
[408454412,1773664232206,-150.26307814,9.3e-05,2]
[408454413,1773664232215,-150.70623044,9.3e-05,2]
[408454414,1773664232229,-150.83259604,9.3e-05,2]
[408454415,1773664232238,-152.9694338,9.3e-05,2]
[408454416,1773664232247,-157.97165616,9.3e-05,2]
[408454417,1773664232257,-159.57628469,9.3e-05,2]
[408454418,1773664232267,-179.28346556,9.3e-05,2]
[408454419,1773664232277,-228.42665997,9.3e-05,2]
[408454420,1773664232287,-238.96837808,9.3e-05,2]
[408454421,1773664232296,-243.79038539,9.3e-05,2]
[408454422,1773664232305,-21001.43235863,9.3e-05,2]
[408454423,1773664232319,-1324.44791251,9.3e-05,2]
[408454424,1773664232339,-500.0,9.298e-05,2]
[408454425,1773664232349,-183.0,9.298e-05,2]
[408454459,1773664237806,-317.0,9.298e-05,2]
[408454461,1773664237816,-500.0,9.298e-05,2]
[408454463,1773664237826,-27674.11972886,9.3e-05,2]
[408454465,1773664237835,-500.73276349,9.303e-05,2]
[408454467,1773664237845,-219.57517364,9.303e-05,2]
[408454469,1773664237854,-326.59785817,9.303e-05,2]
[408454471,1773664237864,-500.0,9.303e-05,2]
[408454473,1773664237873,-500.0,9.303e-05,2]
[408454475,1773664237882,-500.0,9.303e-05,2]
[408454476,1773664237893,-500.0,9.303e-05,2]
[408454478,1773664237902,-500.0,9.303e-05,2]
[408454480,1773664237911,-501.79085466,9.303e-05,2]
[408454481,1773664237920,-500.0,9.303e-05,2]
[408454483,1773664237929,-500.08654689,9.303e-05,2]
[408454485,1773664237940,-500.0,9.303e-05,2]
[408454487,1773664237951,-500.0,9.303e-05,2]
[408454489,1773664237960,-631.4831397,9.324e-05,2]
[408454492,1773664237970,-679897.84608248,9.325e-05,2]
[408454493,1773664237980,-3524.14274944,9.325e-05,2]
[408454495,1773664237989,-7407.90746638,9.425e-05,2]
[408454497,1773664237998,-500.29641304,9.453e-05,2]
[408454500,1773664238008,-500.0,9.466e-05,2]
[408454502,1773664238018,-500.0,9.466e-05,2]
[408454504,1773664238027,-500.0,9.466e-05,2]
[408454506,1773664238036,-416.30441002,9.466e-05,2]
[408454507,1773664238045,-537.6845,9.466e-05,2]
[408454510,1773664238055,-2150.738,9.466e-05,2]
[408454511,1773664238064,-5376.845,9.466e-05,2]
[408454513,1773664238073,-821813.48920792,9.472e-05,2]
[408454516,1773664238086,-3838.94020047,9.472e-05,2]
[408454518,1773664238102,-5186.01910437,9.472e-05,2]
[408454761,1773664245805,-2628.90195915,9.283e-05,2]
[408454762,1773664245815,-518.0,9.377e-05,2]
[408454763,1773664245824,-5046.3714857,9.472e-05,2]
[408454764,1773664246025,-351.92062858,9.472e-05,2]
[408454765,1773664248313,151.0,0.0001,120]
[408454766,1773664286563,151.0,0.0001,120]
[408454767,1773664318289,151.0,0.0001,120]
[408454768,1773664357907,151.0,0.0001,120]
[408454769,1773664392058,151.0,0.0001,120]
[408454770,1773664434544,151.0,0.0001,120]
[408454771,1773664466025,151.0,0.0001,120]
[408454773,1773664504835,300.0,7.693e-05,120]
[408454774,1773664505635,151.0,0.0001,120]
[408454775,1773664506580,300.0,7.693e-05,120]
[408454776,1773664557020,151.0,0.0001,120]
[408454777,1773664607271,151.0,0.0001,120]
[408454778,1773664646693,151.0,0.0001,120]
[408454779,1773664686746,151.0,0.0001,120]
[408454786,1773664722039,151.0,0.0001,120]
[408454787,1773664766512,151.0,0.0001,120]
[408454788,1773664805070,151.0,0.0001,120]
[408454789,1773664846960,151.0,0.0001,120]
[408454790,1773664897089,151.0,0.0001,120]
[408454791,1773664945164,151.0,0.0001,120]
[408454792,1773664977398,151.0,0.0001,120]
[408454793,1773665025936,151.0,0.0001,120]
[408454794,1773665065594,151.0,0.0001,120]
[408454795,1773665107093,151.0,0.0001,120]
[408454801,1773665144682,151.0,0.0001,120]
[408454802,1773665177348,151.0,0.0001,120]
[408454804,1773665226275,151.0,0.0001,120]
[408454811,1773665265879,151.0,0.0001,120]
[408454812,1773665295944,151.0,0.0001,120]
[408454813,1773665337119,151.0,0.0001,120]
[408454814,1773665374751,151.0,0.0001,120]
[408454815,1773665402395,161.2,2e-05,2]
[408454816,1773665405282,151.0,0.0001,120]
[408454839,1773665431821,-549.0,9.184e-05,2]
[408454841,1773665431830,-161.31399345,9.249e-05,2]
[408454844,1773665431840,-8726.68767751,9.272e-05,2]
[408454846,1773665431849,-172.24802743,9.3e-05,2]
[408454848,1773665431858,-227.39140058,9.3e-05,2]
[408454849,1773665431867,-248.87355807,9.3e-05,2]
[408454852,1773665431876,-282.53477373,9.3e-05,2]
[408454854,1773665431885,-619.072441,9.311e-05,2]
[408454855,1773665431895,-401.22,9.311e-05,2]
[408454857,1773665431905,-31342.20231222,9.35e-05,2]
[408454859,1773665431917,-4414.9,9.35e-05,2]
[408454861,1773665431929,-3169.1363388,9.35e-05,2]
[408454862,1773665437413,151.0,0.0001,120]
[408455033,1773665446004,-8726.68767751,9.278e-05,2]
[408455034,1773665446047,-3690.7,9.278e-05,2]
[408455064,1773665474905,151.0,0.0001,120]
[408455065,1773665507236,151.0,0.0001,120]
[408455066,1773665542076,151.0,0.0001,120]
[408455068,1773665585290,151.0,0.0001,120]
[408455070,1773665624893,151.0,0.0001,120]
[408455071,1773665655407,151.0,0.0001,120]
[408455072,1773665706256,151.0,0.0001,120]
[408455073,1773665744938,151.0,0.0001,120]
[408455074,1773665786803,151.0,0.0001,120]
[408455075,1773665818469,151.0,0.0001,120]
[408455076,1773665855895,151.0,0.0001,120]
[408455078,1773665891915,151.0,0.0001,120]
[408455079,1773665935261,151.0,0.0001,120]
[408455080,1773665977579,151.0,0.0001,120]
[408455082,1773666014916,151.0,0.0001,120]
[408455083,1773666047370,151.0,0.0001,120]
[408455084,1773666085925,151.0,0.0001,120]
[408455085,1773666125101,151.0,0.0001,120]
[408455087,1773666165836,6854.79371277,2.3e-05,120]
[408455088,1773666166446,151.0,0.0001,120]
[408455089,1773666205029,151.0,0.0001,120]
[408455090,1773666235860,151.0,0.0001,120]
[408455091,1773666275690,151.0,0.0001,120]
[408455092,1773666307179,151.0,0.0001,120]
[408455096,1773666342146,151.0,0.0001,120]
[408455105,1773666386509,151.0,0.0001,120]
[408455107,1773666424683,151.0,0.0001,120]
[408455175,1773666451490,167.018395,8.162e-05,120]
[408455199,1773666466916,151.0,0.0001,120]
[408455200,1773666497359,151.0,0.0001,120]
[408455201,1773666544813,151.0,0.0001,120]
[408455202,1773666575730,151.0,0.0001,120]
[408455203,1773666602375,165.7,2e-05,2]
[408455204,1773666606991,151.0,0.0001,120]
[408455241,1773666632046,-165.7,2.2e-05,2]
[408455243,1773666632056,-258.0951059,8.08e-05,2]
[408455245,1773666632065,-167.018395,8.162e-05,2]
[408455248,1773666632074,-167.018395,8.162e-05,25]
[408455250,1773666632083,-167.018395,8.162e-05,49]
[408455252,1773666632092,-167.018395,8.162e-05,72]
[408455254,1773666632102,-167.018395,8.162e-05,96]
[408455256,1773666632112,-485.64131686,8.977e-05,2]
[408455383,1773666637051,151.0,0.0001,120]
[408455387,1773666638116,-14.35868314,8.977e-05,2]
[408455388,1773666638126,-500.0,8.977e-05,2]
[408455389,1773666638135,-500.0,8.977e-05,2]
[408455390,1773666638144,-275.34773622,9.049e-05,2]
[408455391,1773666638155,-3712.37030109,9.049e-05,2]
[408455392,1773666638355,-320.976,9.049e-05,2]
[408455393,1773666638434,-989.97061566,9.049e-05,2]
[408455481,1773666640539,-317.48901151,9.049e-05,2]
[408455482,1773666640550,-823.99317226,9.049e-05,2]
[408455506,1773666645440,-3232.90007557,9.049e-05,2]
[408455513,1773666646154,-6695.93687174,9.049e-05,2]
[408455514,1773666646163,-500.0,9.099e-05,2]
[408455515,1773666646173,-500.0,9.099e-05,2]
[408455516,1773666646182,-492.23353441,9.099e-05,2]
[408455517,1773666646192,-500.0,9.099e-05,2]
[408455518,1773666646201,-500.0,9.099e-05,2]
[408455519,1773666646210,-199.65346887,9.099e-05,2]
[408455520,1773666646220,-4199.09874464,9.1e-05,2]
[408455521,1773666646231,-4029.32168499,9.1e-05,2]
[408455522,1773666646240,-10162.84810072,9.1e-05,2]
[408455523,1773666646250,-9195.63426512,9.1e-05,2]
[408455524,1773666646259,-9844.33735605,9.1e-05,2]
[408455525,1773666646268,-177.18415238,9.1e-05,2]
[408455526,1773666646277,-232.58027794,9.1e-05,2]
[408455527,1773666646287,-237.07019038,9.1e-05,2]
[408455528,1773666646295,-222.79647184,9.1e-05,2]
[408455529,1773666646304,-426.43495196,9.12e-05,2]
[408455530,1773666646314,-228.10831028,9.233e-05,2]
[408455531,1773666646323,-500.0,9.233e-05,2]
[408455532,1773666646332,-500.49200559,9.233e-05,2]
[408455533,1773666646341,-500.0,9.233e-05,2]
[408455534,1773666646350,-549.84767807,9.233e-05,2]
[408455535,1773666646359,-218.7302933,9.233e-05,2]
[408455536,1773666646368,-303.95049178,9.247e-05,2]
[408455537,1773666646377,-2150.738,9.247e-05,2]
[408455538,1773666646386,-5376.845,9.247e-05,2]
[408455539,1773666646397,-500.0,9.252e-05,2]
[408455540,1773666646407,-252.90896218,9.252e-05,2]
[408455541,1773666646417,-500.0,9.252e-05,2]
[408455542,1773666646426,-500.0,9.252e-05,2]
[408455543,1773666646438,-500.0,9.252e-05,2]
[408455544,1773666646447,-500.0,9.252e-05,2]
[408455545,1773666646457,-500.0,9.252e-05,2]
[408455546,1773666646466,-500.0,9.252e-05,2]
[408455547,1773666646476,-500.0,9.252e-05,2]
[408455548,1773666646490,-330.82315057,9.252e-05,2]
[408455549,1773666646500,-27074.56393264,9.253e-05,2]
[408455550,1773666646512,-28335.33032916,9.253e-05,2]
[408455551,1773666677677,151.0,0.0001,120]
[408455552,1773666714726,151.0,0.0001,120]
[408455553,1773666756481,151.0,0.0001,120]
[408455554,1773666795772,151.0,0.0001,120]
[408455555,1773666836615,151.0,0.0001,120]
[408455556,1773666875100,151.0,0.0001,120]
[408455557,1773666905501,151.0,0.0001,120]
[408455559,1773666937128,151.0,0.0001,120]
[408455560,1773666977625,151.0,0.0001,120]
[408455561,1773667014809,151.0,0.0001,120]
[408455562,1773667054567,151.0,0.0001,120]
[408455563,1773667092195,151.0,0.0001,120]
[408455564,1773667124897,151.0,0.0001,120]
[408455565,1773667156536,151.0,0.0001,120]
[408455566,1773667197887,151.0,0.0001,120]
[408455567,1773667202483,165.79,2e-05,2]
[408455568,1773667236987,151.0,0.0001,120]
[408455569,1773667274976,151.0,0.0001,120]
[408455570,1773667306792,151.0,0.0001,120]
[408455571,1773667345789,151.0,0.0001,120]
[408455572,1773667386687,151.0,0.0001,120]
[408455573,1773667417382,151.0,0.0001,120]
[408455575,1773667456879,151.0,0.0001,120]
[408455576,1773667504930,151.0,0.0001,120]
[408455578,1773667544794,151.0,0.0001,120]
[408455579,1773667575794,151.0,0.0001,120]
[408455580,1773667627386,5000.0,2.001e-05,2]
[408455581,1773667627557,151.0,0.0001,120]
[408455582,1773667649964,5000.0,2.001e-05,2]
[408455587,1773667667203,151.0,0.0001,120]
[408455588,1773667672061,5000.0,2.001e-05,2]
[408455589,1773667694233,5000.0,2.001e-05,2]
[408455590,1773667712142,151.0,0.0001,120]
[408455591,1773667715772,5000.0,2.001e-05,2]
[408455592,1773667721539,966.53880659,1.93e-05,2]
[408455593,1773667737291,5000.0,2.001e-05,2]
[408455594,1773667756178,151.0,0.0001,120]
[408455595,1773667758890,2000.0,2.001e-05,2]
[408455596,1773667786934,151.0,0.0001,120]
[408455597,1773667808560,5000.0,2.001e-05,2]
[408455598,1773667819082,-5000.0,2.029e-05,2]
[408455599,1773667819103,-1200.0,2.049e-05,2]
[408455600,1773667819123,-300.0,2.067e-05,2]
[408455601,1773667819142,-300.0,2.067e-05,2]
[408455602,1773667819162,-300.0,2.067e-05,2]
[408455603,1773667819183,-300.0,2.067e-05,2]
[408455604,1773667819203,-165.79,2.2e-05,2]
[408455605,1773667819228,-300.0,2.243e-05,2]
[408455606,1773667819250,-300.0,2.243e-05,2]
[408455607,1773667819272,-300.0,2.243e-05,2]
[408455608,1773667819294,-300.0,2.243e-05,2]
[408455609,1773667819317,-300.0,2.243e-05,2]
[408455610,1773667819339,-300.0,2.243e-05,2]
[408455611,1773667819362,-300.0,2.243e-05,2]
[408455612,1773667819382,-300.0,2.243e-05,2]
[408455613,1773667819403,-34.21,2.243e-05,2]
[408455614,1773667822647,-265.79,2.243e-05,2]
[408455615,1773667822670,-300.0,2.243e-05,2]
[408455616,1773667822692,-300.0,2.243e-05,2]
[408455617,1773667822714,-300.0,2.243e-05,2]
[408455618,1773667822738,-300.0,2.243e-05,2]
[408455619,1773667822761,-300.0,2.243e-05,2]
[408455620,1773667822783,-300.0,2.243e-05,2]
[408455621,1773667822804,-1680.0,2.254e-05,2]
[408455622,1773667822825,-300.0,2.274e-05,2]
[408455623,1773667822847,-600.0,2.287e-05,2]
[408455624,1773667822870,-447.0,2.479e-05,2]
[408455625,1773667822894,-720.0,2.516e-05,2]
[408455626,1773667822925,-864.0,2.767e-05,2]
[408455627,1773667822954,-1000.0,3.044e-05,2]
[408455628,1773667822975,-515.8937,3.315e-05,2]
[408455629,1773667823003,-1000.0,3.348e-05,2]
[408455630,1773667823027,-244.0,3.348e-05,2]
[408455631,1773667823047,-515.8937,3.455e-05,2]
[408455632,1773667823067,-47.4226,3.594e-05,2]
[408455633,1773667824144,-468.4711,3.594e-05,2]
[408455634,1773667824198,-47.44870187,3.683e-05,2]
[408455635,1773667824684,-952.55129813,3.683e-05,2]
[408455636,1773667824708,-492.0,3.683e-05,2]
[408455637,1773667824728,-515.8937,3.734e-05,2]
[408455638,1773667824748,-515.8937,3.874e-05,2]
[408455639,1773667824768,-515.8937,4.013e-05,2]
[408455640,1773667824790,-1000.0,4.051e-05,2]
[408455641,1773667824812,-791.0,4.051e-05,2]
[408455642,1773667824834,-1000.0,4.456e-05,2]
[408455643,1773667824856,-1000.0,4.456e-05,2]
[408455644,1773667824878,-1000.0,4.902e-05,2]
[408455645,1773667824900,-1000.0,4.902e-05,2]
[408455646,1773667824923,-579.0,4.902e-05,2]
[408455717,1773667837259,151.0,0.0001,120]
[408455727,1773667838324,-572.260004,5.338e-05,2]
[408455728,1773667838335,-1123.47053176,5.338e-05,2]
[408455754,1773667840831,-304.26946424,5.338e-05,2]
[408455756,1773667840841,-500.0,8.219e-05,2]
[408455758,1773667840851,-800.0,8.46e-05,3]
[408455760,1773667840860,-500.0,8.493e-05,2]
[408455762,1773667840874,-500.0,8.493e-05,2]
[408455764,1773667840885,-500.0,8.493e-05,2]
[408455766,1773667840895,-500.0,8.493e-05,2]
[408455768,1773667840908,-500.0,8.519e-05,2]
[408455770,1773667840917,-527.03627352,8.519e-05,2]
[408455772,1773667840926,-500.0,8.519e-05,2]
[408455774,1773667840935,-500.0,8.519e-05,2]
[408455776,1773667840944,-500.0,8.519e-05,2]
[408455778,1773667840953,-181.5762054,8.519e-05,2]
[408455780,1773667840963,-500.0,8.519e-05,2]
[408455782,1773667840971,-500.0,8.519e-05,2]
[408455784,1773667840981,-500.0,8.519e-05,2]
[408455785,1773667840992,-500.0,8.519e-05,2]
[408455786,1773667841001,-500.0,8.519e-05,2]
[408455787,1773667841011,-199.65346887,8.519e-05,2]
[408455788,1773667841021,-492.23353441,8.519e-05,2]
[408455789,1773667841031,-1694.41451832,8.52e-05,2]
[408455790,1773667841041,-16987.78553644,8.52e-05,2]
[408455813,1773667845287,-6542.11788176,8.52e-05,2]
[408455814,1773667845299,-2387.96388833,8.52e-05,2]
[408455815,1773667845311,-500.1309873,8.52e-05,2]
[408455816,1773667845401,-271711.51042296,8.52e-05,2]
[408455817,1773667845412,-846554.4768231,8.52e-05,2]
[408455832,1773667846567,-1872.93,8.519e-05,2]
[408455833,1773667846579,-14573.55864179,8.519e-05,2]
[408455834,1773667876847,151.0,0.0001,120]
[408455835,1773667907151,151.0,0.0001,120]
[408455836,1773667945363,151.0,0.0001,120]
[408455837,1773667985732,151.0,0.0001,120]
[408455838,1773667990940,-429.407,8.266e-05,2]
[408455839,1773668017352,151.0,0.0001,120]
[408455842,1773668068219,151.0,0.0001,120]
[408455843,1773668102127,151.0,0.0001,120]
[408455844,1773668142160,151.0,0.0001,120]
[408455846,1773668175305,151.0,0.0001,120]
[408455847,1773668215512,151.0,0.0001,120]
[408455848,1773668247312,151.0,0.0001,120]
[408455850,1773668294936,151.0,0.0001,120]
[408455851,1773668336740,151.0,0.0001,120]
[408455852,1773668376108,151.0,0.0001,120]
[408455853,1773668402682,160.31,2e-05,2]
[408455854,1773668402980,160.31,2.2e-05,2]
[408455855,1773668407813,151.0,0.0001,120]
[408455856,1773668447637,151.0,0.0001,120]
[408455857,1773668478292,151.0,0.0001,120]
[408455858,1773668487405,202.73,0.0001,120]
[408455859,1773668528470,151.0,0.0001,120]
[408455861,1773668565744,151.0,0.0001,120]
[408455862,1773668614879,151.0,0.0001,120]
[408455863,1773668645151,151.0,0.0001,120]
[408455865,1773668686797,151.0,0.0001,120]
[408455866,1773668725628,151.0,0.0001,120]
[408455879,1773668768084,151.0,0.0001,120]
[408455881,1773668806831,151.0,0.0001,120]
[408455889,1773668846430,151.0,0.0001,120]
[408455893,1773668886778,151.0,0.0001,120]
[408455894,1773668917178,151.0,0.0001,120]
[408455895,1773668954926,151.0,0.0001,120]
[408455896,1773668995773,151.0,0.0001,120]
[408455897,1773669011973,317.14760187,5e-05,2]
[408456054,1773669037213,151.0,0.0001,120]
[408456056,1773669037500,-2298.07199754,5e-05,2]
[408456057,1773669037510,-5000.0,5.055e-05,2]
[408456058,1773669037520,-5000.0,5.106e-05,2]
[408456059,1773669037529,-300.0,5.209e-05,2]
[408456060,1773669037540,-178.0,5.209e-05,2]
[408456061,1773669037550,-300.0,5.262e-05,2]
[408456062,1773669037560,-500.45972937,5.479e-05,2]
[408456063,1773669037569,-420.0,5.73e-05,2]
[408456064,1773669037579,-4126.6716275,5.76e-05,2]
[408456065,1773669037589,-1604.2785997,7.494e-05,2]
[408456066,1773669037600,-500.0,7.504e-05,2]
[408456067,1773669037609,-586.0,7.504e-05,2]
[408456068,1773669037619,-7000.0,8.4e-05,2]
[408456070,1773669037629,-1344.3428221,8.469e-05,2]
[408456072,1773669037639,-33025.4408549,8.471e-05,2]
[408456075,1773669037649,-1086.8831991,8.471e-05,2]
[408456077,1773669037659,-501.93364253,8.493e-05,2]
[408456079,1773669037668,-501.38282056,8.493e-05,2]
[408456081,1773669037677,-368.92539147,8.519e-05,2]
[408456082,1773669037687,-500.0,8.519e-05,2]
[408456083,1773669037697,-377.10334378,8.519e-05,2]
[408456084,1773669037707,-500.0,8.519e-05,2]
[408456085,1773669037718,-500.0,8.519e-05,2]
[408456086,1773669037728,-3850.85277515,8.62e-05,2]
[408456087,1773669037737,-600.0,8.66e-05,2]
[408456088,1773669037747,-3299.6531963,8.72e-05,2]
[408456089,1773669037776,-850.71003146,8.72e-05,2]
[408456090,1773669037786,-2150.738,8.766e-05,2]
[408456091,1773669037795,-2679.05327083,8.766e-05,2]
[408456120,1773669038435,-2697.79172917,8.766e-05,2]
[408456121,1773669038444,-4254.14688477,8.82e-05,2]
[408456122,1773669038454,-4725.56491777,8.821e-05,2]
[408456123,1773669038465,-4657.44099447,8.9e-05,2]
[408456124,1773669038474,-3702.28185297,8.9e-05,2]
[408456139,1773669040747,-724.01467532,8.9e-05,2]
[408456209,1773669043660,-5000.0,8.732e-05,2]
[408456210,1773669043669,-45924.13875751,8.9e-05,2]
[408456211,1773669043679,-158.0,9.2e-05,2]
[408456212,1773669043689,-158.0,9.2e-05,2]
[408456213,1773669043698,-442.48204624,9.249e-05,2]
[408456214,1773669043708,-34651.78150379,9.278e-05,2]
[408456215,1773669043717,-2230.315306,9.314e-05,2]
[408456216,1773669043726,-5060.73510416,9.315e-05,2]
[408456217,1773669043735,-151.0,9.401e-05,2]
[408456219,1773669043744,-539.33053174,9.444e-05,2]
[408456221,1773669043753,-256.78,9.472e-05,2]
[408456223,1773669043763,-720.0,9.526e-05,2]
[408456225,1773669043773,-7368.9719069,9.674e-05,2]
[408456227,1773669043782,-988.00075485,9.701e-05,2]
[408456229,1773669043792,-1768.15825678,9.708e-05,2]
[408456231,1773669043801,-685.36853818,9.708e-05,2]
[408456233,1773669043810,-158.0,9.8e-05,2]
[408456235,1773669043820,-158.0,9.8e-05,2]
[408456237,1773669043830,-500.0,9.8e-05,2]
[408456239,1773669043839,-2312.83697232,9.862e-05,2]
[408456241,1773669043849,-1564.79150523,9.9e-05,2]
[408456243,1773669043858,-500.0,9.941e-05,2]
[408456245,1773669043868,-1644.2398817,9.942e-05,2]
[408456247,1773669043877,-500.0,9.973e-05,2]
[408456249,1773669043887,-500.35878526,9.973e-05,2]
[408456251,1773669043897,-499.84284101,9.973e-05,2]
[408456253,1773669043906,-623.88245714,9.973e-05,2]
[408456255,1773669043916,-100000.0,0.0001,2]